bitfinex-derivatives/quotes_SOLF0:USTF0_20260213
["timestamp","ask_amount","ask_price","bid_price","bid_amount"]
[1771001628294,3.24075163,84.36,84.328,7.60643151]
[1771001628593,3.24075163,84.37,84.328,7.60643151]
[1771001628797,3.24075163,84.36,84.328,18.28593151]
[1771001628996,3.24075163,84.36,84.328,7.60643151]
[1771001630691,3.24075163,84.37,84.328,7.60643151]
[1771001631092,3.24075163,84.38,84.328,7.60643151]
[1771001631285,7.56015074,84.406,84.344,7.60643151]
[1771001631599,3.24075163,84.38,84.344,7.60643151]
[1771001632794,3.24075163,84.38,84.325,14.48731817]
[1771001632795,3.24075163,84.37,84.331,10.6791]
[1771001632993,7.56015074,84.379,84.331,10.6791]
[1771001634193,7.56015074,84.379,84.338,10.6782]
[1771001635597,10.672,84.388,84.345,10.6773]
[1771001636099,10.672,84.388,84.346,7.60643151]
[1771001636306,10.672,84.388,84.347,10.6771]
[1771001636898,7.56015074,84.397,84.352,10.6765]
[1771001637504,10.6712,84.394,84.348,7.60643151]
[1771001638002,7.56015074,84.397,84.348,7.60643151]
[1771001638202,7.56015074,84.397,84.356,10.6759]
[1771001638507,7.56015074,84.412,84.356,7.60643151]
[1771001638905,7.56015074,84.412,84.358,7.60643151]
[1771001639809,10.6691,84.411,84.364,7.60643151]
[1771001640713,7.56015074,84.427,84.371,7.87459315]
[1771001641005,7.6537267,84.445,84.377,7.87459315]
[1771001641205,7.6537267,84.445,84.397,18.54529315]
[1771001641406,7.6537267,84.464,84.398,7.87459315]
[1771001642199,7.6537267,84.453,84.398,7.87459315]
[1771001642403,7.6537267,84.453,84.392,7.87459315]
[1771001642606,7.6537267,84.449,84.377,7.87459315]
[1771001642807,8.67925756,84.47,84.35,8.67925756]
[1771001642808,7.6537267,84.427,84.363,10.74483637]
[1771001643007,7.6537267,84.427,84.36,7.87459315]
[1771001643202,10.6697,84.406,84.36,7.87459315]
[1771001643402,102.2737267,84.424,84.36,7.87459315]
[1771001643610,7.6537267,84.424,84.36,7.87459315]
[1771001644203,8.67925756,84.43,84.371,7.87459315]
[1771001644402,7.6537267,84.44,84.373,7.87459315]
[1771001645715,10.6665,84.431,84.376,10.6733]
[1771001645916,7.6537267,84.439,84.373,7.87459315]
[1771001647008,7.6537267,84.439,84.375,7.87459315]
[1771001647208,8.67925756,84.47,84.375,7.87459315]
[1771001647209,7.6537267,84.46,84.375,7.87459315]
[1771001647414,7.6537267,84.46,84.381,7.87459315]
[1771001648411,10.6648,84.445,84.402,10.6701]
[1771001648713,10.6648,84.445,84.401,7.87459315]
[1771001648914,10.666,84.435,84.385,7.87459315]
[1771001650818,10.666,84.435,84.392,10.6713]
[1771001654325,10.6644,84.448,84.402,7.87459315]
[1771001655633,3.23395543,84.43,84.391,10.6714]
[1771001655829,3.23395543,84.44,84.391,7.87459315]
[1771001656528,10.6648,84.445,84.405,7.87459315]
[1771001656733,3.23395543,84.44,84.405,7.87459315]
[1771001657424,10.6648,84.445,84.405,7.87459315]
[1771001657628,3.23395543,84.44,84.405,7.87459315]
[1771001658933,7.6537267,84.439,84.381,7.87459315]
[1771001659128,3.23425439,84.46,84.401,7.87459315]
[1771001659328,3.23425439,84.47,84.411,7.87459315]
[1771001659533,3.23425439,84.48,84.421,7.87459315]
[1771001659735,3.23425439,84.48,84.431,7.87459315]
[1771001660237,3.23425439,84.48,84.434,7.87459315]
[1771001660532,7.6537267,84.483,84.434,7.87459315]
[1771001661737,7.6537267,84.483,84.44,10.6652]
[1771001662036,7.6537267,84.481,84.411,7.87459315]
[1771001662339,7.6537267,84.481,84.416,7.87459315]
[1771001662541,10.6623,84.464,84.416,7.87459315]
[1771001662734,7.6537267,84.464,84.391,7.87459315]
[1771001662936,21.3162,84.498,84.394,7.87459315]
[1771001662937,7.6537267,84.459,84.394,7.87459315]
[1771001663337,10.6645,84.447,84.394,7.87459315]
[1771001663536,10.6645,84.447,84.396,10.6708]
[1771001663841,7.6537267,84.478,84.397,7.87459315]
[1771001664035,7.6537267,84.478,84.427,10.6669]
[1771001664940,10.6596,84.486,84.435,7.87459315]
[1771001665742,10.6596,84.486,84.436,10.6657]
[1771001667443,7.6537267,84.476,84.427,10.6669]
[1771001668246,10.6612,84.473,84.427,10.6669]
[1771001668742,7.6537267,84.476,84.435,10.6659]
[1771001669238,7.6537267,84.476,84.42,7.87459315]
[1771001669440,10.6609,84.475,84.427,10.667]
[1771001670839,18.39320486,84.475,84.427,10.667]
[1771001671038,8.65507396,84.49,84.42,7.87459315]
[1771001671039,10.6622,84.465,84.42,7.87459315]
[1771001671345,7.73230486,84.464,84.408,7.72780837]
[1771001673739,10.6648,84.445,84.408,7.72780837]
[1771001674040,7.73230486,84.45,84.396,7.72780837]
[1771001674444,10.6642,84.449,84.402,10.67]
[1771001676046,10.6649,84.444,84.396,7.72780837]
[1771001677041,7.73230486,84.448,84.399,8.01255831]
[1771001677442,10.6646,84.446,84.399,8.01255831]
[1771001677647,7.73230486,84.448,84.376,8.01255831]
[1771001678546,8.11158835,84.433,84.376,8.01255831]
[1771001679846,8.11158835,84.433,84.364,250.66995272]
[1771001679847,10.6675,84.423,84.378,8.01255831]
[1771001680746,10.6675,84.423,84.38,10.6728]
[1771001681052,10.6675,84.423,84.38,18.68535831]
[1771001681251,10.6675,84.423,84.381,8.01255831]
[1771001681554,2.96317608,84.427,84.381,8.01255831]
[1771001681742,2.96317608,84.426,84.381,8.01255831]
[1771001681945,2.96317608,84.425,84.381,8.01255831]
[1771001682251,10.6676,84.422,84.382,10.6726]
[1771001682448,2.96317608,84.421,84.381,8.01255831]
[1771001682648,2.96317608,84.42,84.381,8.01255831]
[1771001682849,10.6673,84.425,84.381,8.01255831]
[1771001683049,2.96317608,84.424,84.381,8.01255831]
[1771001683251,11.07476443,84.436,84.381,8.01255831]
[1771001683445,10.6662,84.434,84.388,18.68445831]
[1771001683748,2.96317608,84.433,84.389,8.01255831]
[1771001683953,10.6647,84.446,84.406,8.01255831]
[1771001684148,2.96317608,84.445,84.406,8.01255831]
[1771001684457,2.96317608,84.444,84.406,8.01255831]
[1771001684745,2.96317608,84.445,84.406,8.01255831]
[1771001684947,2.96317608,84.445,84.407,8.01255831]
[1771001685152,2.96317608,84.449,84.407,8.01255831]
[1771001685449,2.96317608,84.448,84.407,8.01255831]
[1771001685652,3.23383482,84.44,84.395,10.74483637]
[1771001685853,3.23383482,84.44,84.393,8.01255831]
[1771001686245,3.23383482,84.44,84.396,10.6709]
[1771001687948,3.23383482,84.44,84.402,10.67]
[1771001688262,3.23383482,84.44,84.393,8.01255831]
[1771001688263,2.96317608,84.439,84.403,8.01255831]
[1771001688651,2.96317608,84.449,84.403,8.01255831]
[1771001688854,2.96317608,84.448,84.412,10.6688]
[1771001689055,2.96317608,84.447,84.412,10.6688]
[1771001689355,2.96317608,84.446,84.417,10.6682]
[1771001689555,2.96317608,84.445,84.413,8.01255831]
[1771001689862,2.96317608,84.444,84.413,8.01255831]
[1771001690157,2.96317608,84.443,84.413,8.01255831]
[1771001690461,10.6635,84.455,84.413,8.01255831]
[1771001690659,2.96317608,84.454,84.413,8.01255831]
[1771001690861,2.96317608,84.453,84.413,8.01255831]
[1771001691061,2.96317608,84.453,84.41,10.6691]
[1771001691062,2.96317608,84.452,84.415,8.01255831]
[1771001691258,2.96317608,84.451,84.415,8.01255831]
[1771001691463,2.96317608,84.45,84.421,8.01255831]
[1771001691762,3.23383482,84.47,84.421,8.01255831]
[1771001691763,2.96317608,84.449,84.421,8.01255831]
[1771001691964,2.96317608,84.469,84.421,8.01255831]
[1771001692165,132.54,84.475,84.421,8.01255831]
[1771001692166,2.96317608,84.468,84.421,8.01255831]
[1771001692460,2.96317608,84.467,84.421,8.01255831]
[1771001692666,2.96317608,84.466,84.421,8.01255831]
[1771001692861,2.96317608,84.465,84.424,10.6673]
[1771001693167,2.96317608,84.464,84.424,10.6673]
[1771001693362,2.96317608,84.463,84.424,10.6673]
[1771001693555,2.96317608,84.462,84.424,10.6673]
[1771001693759,3.23383482,84.47,84.424,10.6673]
[1771001693760,2.96317608,84.461,84.424,10.6673]
[1771001693957,2.96317608,84.46,84.424,10.6673]
[1771001694159,2.96317608,84.459,84.424,10.6673]
[1771001694460,2.96317608,84.459,84.414,10.74483637]
[1771001694461,2.96317608,84.458,84.433,8.01255831]
[1771001694664,2.96172189,84.474,84.433,8.01255831]
[1771001694858,3.23383482,84.48,84.433,8.01255831]
[1771001695866,8.11158835,84.489,84.433,8.01255831]
[1771001696068,8.11158835,84.469,84.42,10.74483637]
[1771001696267,8.11158835,84.469,84.418,8.01255831]
[1771001696268,3.23383482,84.46,84.418,8.01255831]
[1771001696772,8.11158835,84.469,84.418,8.01255831]
[1771001697366,10.662,84.467,84.419,10.6679]
[1771001697567,8.11158835,84.466,84.42,11.24639313]
[1771001698773,10.6623,84.465,84.42,11.24639313]
[1771001700476,8.11158835,84.459,84.406,8.01255831]
[1771001700676,7.7861637,84.479,84.42,3.23383482]
[1771001700874,10.6613,84.472,84.427,10.6669]
[1771001701076,10.6613,84.472,84.428,7.75839662]
[1771001701270,7.7861637,84.479,84.418,10.74483637]
[1771001701271,7.7861637,84.479,84.43,10.99223144]
[1771001701475,7.7861637,84.479,84.43,7.75839662]
[1771001702077,10.6621,84.466,84.42,3.23383482]
[1771001702472,10.6621,84.466,84.42,10.99223144]
[1771001702677,10.6612,84.473,84.421,7.75839662]
[1771001702982,7.7861637,84.479,84.43,3.23383482]
[1771001703170,7.7861637,84.479,84.43,10.99223144]
[1771001703368,7.7861637,84.477,84.43,21.65883144]
[1771001703572,7.7861637,84.477,84.43,18.42499662]
[1771001703879,3.23383482,84.47,84.43,18.42499662]
[1771001704377,3.23383482,84.47,84.438,10.6655]
[1771001704582,7.7861637,84.477,84.43,7.75839662]
[1771001704778,3.23383482,84.47,84.43,7.75839662]
[1771001705074,3.23383482,84.47,84.414,10.74483637]
[1771001705075,7.7861637,84.469,84.405,18.50323299]
[1771001705281,7.7861637,84.469,84.405,7.75839662]
[1771001705578,10.6653,84.441,84.39,7.75839662]
[1771001706679,10.6656,84.438,84.39,7.75839662]
[1771001706878,10.6656,84.438,84.376,14.49583463]
[1771001706879,7.7861637,84.436,84.376,10.74483637]
[1771001707081,7.7861637,84.434,84.375,7.75839662]
[1771001707380,8.65850619,84.45,84.375,7.75839662]
[1771001707381,7.7861637,84.432,84.375,7.75839662]
[1771001707577,2.96277254,84.431,84.375,7.75839662]
[1771001707783,2.96277254,84.43,84.375,7.75839662]
[1771001708076,2.96277254,84.429,84.375,7.75839662]
[1771001708280,7.7861637,84.406,84.365,10.74483637]
[1771001708475,7.7861637,84.404,84.346,10.74483637]
[1771001708684,8.65850619,84.41,84.343,7.75839662]
[1771001708685,10.74893624,84.403,84.347,7.75839662]
[1771001708886,10.6703,84.401,84.347,7.75839662]
[1771001709077,2.96277254,84.4,84.347,7.75839662]
[1771001709385,2.96383424,84.417,84.354,7.75839662]
[1771001709587,2.96383424,84.416,84.354,7.75839662]
[1771001709884,13.63233424,84.415,84.356,7.75839662]
[1771001710175,2.96383424,84.414,84.356,7.75839662]
[1771001710378,10.6685,84.415,84.356,7.75839662]
[1771001710379,2.96383424,84.413,84.356,7.75839662]
[1771001710579,2.96383424,84.412,84.356,7.75839662]
[1771001710782,2.96383424,84.411,84.358,7.75839662]
[1771001710980,2.96383424,84.41,84.358,7.75839662]
[1771001711180,2.96383424,84.409,84.358,7.75839662]
[1771001711482,10.6695,84.407,84.358,7.75839662]
[1771001711679,2.96383424,84.406,84.358,7.75839662]
[1771001711879,2.96383424,84.405,84.358,7.75839662]
[1771001712074,7.7861637,84.418,84.361,7.75839662]
[1771001712075,10.6687,84.414,84.361,7.75839662]
[1771001712274,2.96391764,84.413,84.361,7.75839662]
[1771001712480,2.96391764,84.412,84.361,7.75839662]
[1771001712681,2.96391764,84.411,84.361,7.75839662]
[1771001712982,2.96391764,84.41,84.361,7.75839662]
[1771001713181,10.6687,84.414,84.363,7.75839662]
[1771001713883,2.96391764,84.429,84.365,7.75839662]
[1771001714082,2.96391764,84.428,84.365,7.75839662]
[1771001714281,2.96391764,84.427,84.365,7.75839662]
[1771001714487,2.96391764,84.426,84.386,7.75839662]
[1771001714785,11.0002189,84.474,84.386,7.75839662]
[1771001714786,2.96391764,84.441,84.386,7.75839662]
[1771001714988,2.96391764,84.44,84.386,7.75839662]
[1771001715179,10.75008134,84.449,84.386,7.75839662]
[1771001715379,10.75008134,84.448,84.386,7.75839662]
[1771001715584,10.75008134,84.447,84.386,7.75839662]
[1771001715884,7.7861637,84.445,84.386,7.75839662]
[1771001716084,2.96391764,84.444,84.386,7.75839662]
[1771001716287,2.96391764,84.443,84.39,7.75839662]
[1771001716586,21.3151,84.502,84.39,7.75839662]
[1771001716587,2.96391764,84.449,84.39,7.75839662]
[1771001716784,21.3151,84.502,84.36,8.65850619]
[1771001716785,2.96391764,84.459,84.419,7.75839662]
[1771001717089,2.96391764,84.469,84.419,7.75839662]
[1771001717287,2.96391764,84.468,84.419,7.75839662]
[1771001717587,13.62591764,84.467,84.423,10.6674]
[1771001717783,2.96391764,84.466,84.419,7.75839662]
[1771001717983,2.96391764,84.465,84.419,7.75839662]
[1771001718183,2.96391764,84.464,84.419,7.75839662]
[1771001718386,2.96391764,84.468,84.419,7.75839662]
[1771001718584,2.96391764,84.467,84.419,7.75839662]
[1771001718785,10.6623,84.464,84.42,10.6678]
[1771001719090,2.96391764,84.465,84.419,7.75839662]
[1771001719289,2.96391764,84.468,84.419,7.75839662]
[1771001719494,2.96391764,84.467,84.419,7.75839662]
[1771001719790,2.96391764,84.466,84.419,7.75839662]
[1771001719990,2.96391764,84.465,84.419,7.75839662]
[1771001720190,7.7861637,84.463,84.404,7.75839662]
[1771001720392,7.7861637,84.459,84.404,7.75839662]
[1771001720584,7.7861637,84.457,84.388,7.75839662]
[1771001720781,2.96391764,84.456,84.411,7.75839662]
[1771001720986,2.96391764,84.472,84.411,7.75839662]
[1771001721185,7.7861637,84.47,84.411,7.75839662]
[1771001721391,7.7861637,84.468,84.411,7.75839662]
[1771001721587,10.6622,84.466,84.411,7.75839662]
[1771001721789,2.96173664,84.465,84.411,7.75839662]
[1771001721987,2.96173664,84.464,84.411,7.75839662]
[1771001722192,2.96173664,84.463,84.411,7.75839662]
[1771001722391,2.96173664,84.462,84.411,7.75839662]
[1771001722592,2.96173664,84.461,84.411,7.75839662]
[1771001722793,7.7861637,84.466,84.421,10.6677]
[1771001722988,2.96173664,84.465,84.421,10.6677]
[1771001723193,2.96173664,84.464,84.422,7.75839662]
[1771001723493,2.96173664,84.463,84.422,7.75839662]
[1771001723692,2.96173664,84.462,84.422,7.75839662]
[1771001723893,2.96173664,84.461,84.422,7.75839662]
[1771001724094,2.96173664,84.465,84.424,7.75839662]
[1771001724397,2.96173664,84.479,84.424,7.75839662]
[1771001724693,8.65995877,84.48,84.412,7.75839662]
[1771001724694,7.7861637,84.477,84.412,7.75839662]
[1771001724889,3.2330503,84.46,84.412,7.75839662]
[1771001725693,3.2330503,84.46,84.424,7.75839662]
[1771001726395,3.2330503,84.46,84.423,10.6674]
[1771001726596,3.2330503,84.45,84.409,7.75839662]
[1771001727194,3.2330503,84.45,84.412,10.6688]
[1771001727786,3.2330503,84.44,84.409,7.75839662]
[1771001728185,3.2330503,84.45,84.409,7.75839662]
[1771001728394,2.96237164,84.449,84.409,7.75839662]
[1771001728595,10.6634,84.456,84.41,7.75839662]
[1771001729090,3.2330503,84.44,84.405,10.6697]
[1771001729390,3.2330503,84.44,84.391,7.75839662]
[1771001729695,2.96237164,84.446,84.391,7.75839662]
[1771001729895,2.96237164,84.445,84.391,7.75839662]
[1771001730094,2.96237164,84.447,84.391,7.75839662]
[1771001730292,2.96237164,84.446,84.41,7.75839662]
[1771001730487,3.2330503,84.45,84.41,7.75839662]
[1771001730996,94.54,84.477,84.41,7.75839662]
[1771001730997,18.68260031,84.466,84.422,7.42601588]
[1771001731292,18.68260031,84.466,84.384,21.61910534]
[1771001731293,3.2330503,84.45,84.403,7.42601588]
[1771001732595,8.02050031,84.449,84.403,7.42601588]
[1771001732796,8.02050031,84.449,84.408,10.6693]
[1771001733194,3.2330503,84.43,84.387,7.42601588]
[1771001733394,3.2330503,84.43,84.406,10.6695]
[1771001733587,3.2330503,84.45,84.407,7.42601588]
[1771001733994,3.2330503,84.46,84.407,7.42601588]
[1771001734192,2.96216914,84.459,84.407,7.42601588]
[1771001734391,2.96216914,84.458,84.407,7.42601588]
[1771001734591,3.2330503,84.45,84.407,7.42601588]
[1771001734896,2.96216914,84.456,84.421,10.6677]
[1771001735096,2.96216914,84.459,84.421,10.6677]
[1771001735787,2.96216914,84.458,84.421,10.6677]
[1771001736095,2.96216914,84.459,84.421,10.6677]
[1771001736296,2.96216914,84.459,84.407,7.42601588]
[1771001736297,3.2330503,84.45,84.414,10.6686]
[1771001737396,10.6634,84.456,84.414,18.59862876]
[1771001738294,7.31041904,84.479,84.419,7.93002876]
[1771001738490,3.2330503,84.47,84.419,7.93002876]
[1771001738798,2.96216914,84.469,84.419,7.93002876]
[1771001739100,3.2330503,84.47,84.419,7.93002876]
[1771001739798,3.2330503,84.47,84.436,10.6658]
[1771001741700,3.2330503,84.45,84.407,7.93002876]
[1771001742099,3.2330503,84.44,84.407,7.93002876]
[1771001742901,7.31041904,84.456,84.407,7.93002876]
[1771001742902,2.96216914,84.451,84.407,7.93002876]
[1771001743101,2.96216914,84.45,84.407,7.93002876]
[1771001743300,2.96216914,84.449,84.407,7.93002876]
[1771001743497,10.27258818,84.455,84.407,7.93002876]
[1771001743695,10.6644,84.448,84.408,10.6694]
[1771001745002,13.62656914,84.448,84.408,10.6694]
[1771001745201,10.6644,84.448,84.408,10.6694]
[1771001746001,2.96216914,84.449,84.414,10.6685]
[1771001746197,2.96216914,84.448,84.414,10.6685]
[1771001746397,2.96216914,84.453,84.414,10.6685]
[1771001746598,2.96216914,84.452,84.414,10.6685]
[1771001746798,2.96216914,84.451,84.407,7.93002876]
[1771001747000,10.6621,84.466,84.407,7.93002876]
[1771001747796,10.6621,84.466,84.426,10.667]
[1771001748003,10.6621,84.466,84.422,7.93002876]
[1771001748202,13.62426914,84.466,84.422,7.93002876]
[1771001748401,10.6621,84.466,84.422,7.93002876]
[1771001748701,13.62426914,84.466,84.422,7.93002876]
[1771001748897,10.6621,84.466,84.422,7.93002876]
[1771001749100,13.62426914,84.466,84.422,7.93002876]
[1771001749300,10.6621,84.466,84.422,7.93002876]
[1771001749500,13.62426914,84.466,84.422,7.93002876]
[1771001749702,10.6621,84.466,84.424,10.6673]
[1771001749902,13.62426914,84.466,84.424,10.6673]
[1771001750102,10.6621,84.466,84.424,10.6673]
[1771001750401,13.62426914,84.466,84.424,10.6673]
[1771001750599,10.6621,84.466,84.424,10.6673]
[1771001750800,13.62426914,84.466,84.424,10.6673]
[1771001751002,10.6621,84.466,84.424,10.6673]
[1771001751304,13.62426914,84.466,84.424,10.6673]
[1771001751502,10.6621,84.466,84.424,10.6673]
[1771001751702,13.62426914,84.466,84.424,10.6673]
[1771001751903,10.6621,84.466,84.424,10.6673]
[1771001752104,13.62426914,84.466,84.424,10.6673]
[1771001752304,10.6621,84.466,84.424,10.6673]
[1771001752604,13.62426914,84.466,84.424,10.6673]
[1771001752805,10.6621,84.466,84.424,18.59732876]
[1771001753003,13.62426914,84.466,84.424,18.59732876]
[1771001753205,10.6621,84.466,84.427,7.93002876]
[1771001754403,7.31041904,84.464,84.413,7.93002876]
[1771001754604,7.31041904,84.462,84.413,7.93002876]
[1771001754802,2.96216914,84.461,84.413,7.93002876]
[1771001755001,10.6635,84.455,84.413,18.59872876]
[1771001755208,2.96216914,84.454,84.413,18.59872876]
[1771001755396,2.96216914,84.453,84.413,18.59872876]
[1771001755599,2.96216914,84.452,84.413,18.59872876]
[1771001755800,7.31041904,84.45,84.403,10.6699]
[1771001756008,2.96216914,84.449,84.403,10.6699]
[1771001756201,2.96216914,84.448,84.403,10.6699]
[1771001756400,10.6657,84.437,84.397,7.93002876]
[1771001756612,2.96216914,84.436,84.397,7.93002876]
[1771001756801,2.96216914,84.449,84.397,7.93002876]
[1771001757001,2.96216914,84.448,84.397,7.93002876]
[1771001757207,2.96216914,84.447,84.397,7.93002876]
[1771001757509,2.96216914,84.446,84.397,7.93002876]
[1771001757811,13.62686914,84.445,84.406,10.6695]
[1771001758009,7.31041904,84.443,84.397,7.93002876]
[1771001758311,2.96216914,84.442,84.397,7.93002876]
[1771001758504,2.96216914,84.441,84.397,7.93002876]
[1771001758710,2.96216914,84.44,84.397,7.93002876]
[1771001758906,2.96216914,84.439,84.405,10.6696]
[1771001759108,2.96216914,84.438,84.405,10.6696]
[1771001759307,2.96216914,84.437,84.405,10.6696]
[1771001759509,7.31041904,84.434,84.387,10.74483637]
[1771001759710,8.66321254,84.44,84.383,7.93002876]
[1771001759711,7.31041904,84.432,84.383,7.93002876]
[1771001759910,7.31041904,84.43,84.383,7.93002876]
[1771001760208,7.31041904,84.428,84.383,7.93002876]
[1771001760410,2.96216914,84.427,84.383,7.93002876]
[1771001760610,2.96216914,84.426,84.383,7.93002876]
[1771001760911,2.96216914,84.425,84.386,7.29786611]
[1771001761104,2.96216914,84.424,84.388,7.29786611]
[1771001761313,7.27031087,84.444,84.392,7.29786611]
[1771001761511,10.6663,84.433,84.392,7.29786611]
[1771001761707,2.9625662,84.432,84.392,7.29786611]
[1771001761907,2.9625662,84.431,84.392,7.29786611]
[1771001762206,2.9625662,84.43,84.392,7.29786611]
[1771001762411,6.62e-05,84.429,84.395,7.29786611]
[1771001762712,7.27031087,84.458,84.396,7.29786611]
[1771001763211,7.27031087,84.458,84.401,10.74483637]
[1771001763516,7.27031087,84.458,84.402,7.29786611]
[1771001763708,10.6643,84.449,84.404,7.29786611]
[1771001764422,10.6643,84.449,84.406,17.96746611]
[1771001765515,10.6633,84.457,84.414,7.29786611]
[1771001766215,10.6642,84.449,84.414,7.29786611]
[1771001766409,3.23402373,84.44,84.402,10.74483637]
[1771001766612,3.23402373,84.43,84.393,10.74483637]
[1771001766808,3.23402373,84.43,84.391,10.74483637]
[1771001767116,3.23402373,84.43,84.388,10.74483637]
[1771001767311,7.27031087,84.439,84.387,10.74483637]
[1771001767312,3.23402373,84.42,84.387,10.74483637]
[1771001767512,3.23402373,84.43,84.387,10.74483637]
[1771001767707,3.23402373,84.43,84.389,7.29786611]
[1771001768215,7.27031087,84.437,84.402,10.67]
[1771001768416,3.23402373,84.45,84.393,7.29786611]
[1771001768617,3.23402373,84.45,84.399,7.29786611]
[1771001768918,3.23402373,84.44,84.399,7.29786611]
[1771001769119,3.23402373,84.45,84.403,7.29786611]
[1771001769314,3.23402373,84.44,84.407,7.29786611]
[1771001770516,3.23402373,84.43,84.407,7.29786611]
[1771001770719,3.23402373,84.43,84.389,7.29786611]
[1771001770920,3.23402373,84.44,84.393,7.29786611]
[1771001771412,3.23402373,84.44,84.394,7.29786611]
[1771001771810,3.23402373,84.44,84.403,10.67]
[1771001772219,3.23402373,84.44,84.403,17.96786611]
[1771001772419,13.89812373,84.45,84.407,7.29786611]
[1771001772716,3.23402373,84.45,84.407,7.29786611]
[1771001773619,3.23402373,84.44,84.407,7.29786611]
[1771001774214,3.23402373,84.44,84.415,10.6684]
[1771001774418,3.23402373,84.45,84.415,10.6684]
[1771001775212,3.23402373,84.45,84.407,17.96726611]
[1771001775413,3.23402373,84.44,84.407,17.96726611]
[1771001778618,3.23402373,84.44,84.407,10.6694]
[1771001778821,10.5043346,84.44,84.407,10.6694]
[1771001779025,10.5052151,84.44,84.407,10.6694]
[1771001779529,3.23490423,84.43,84.392,7.29786611]
[1771001779824,7.27031087,84.438,84.392,7.29786611]
[1771001780031,3.23490423,84.44,84.397,7.29786611]
[1771001780529,3.23490423,84.44,84.406,7.29786611]
[1771001780829,3.23490423,84.45,84.406,7.29786611]
[1771001781232,3.23490423,84.45,84.411,18.04270248]
[1771001781732,3.23490423,84.45,84.414,10.6685]
[1771001782630,10.6631,84.458,84.416,17.96616611]
[1771001782931,94.54,84.479,84.139,173.9577494]
[1771001782932,3.23490423,84.47,84.434,7.29786611]
[1771001783327,3.23490423,84.46,84.421,7.29786611]
[1771001783826,7.27031087,84.467,84.434,10.666]
[1771001784432,3.23490423,84.48,84.429,7.29786611]
[1771001784628,3.23490423,84.48,84.435,7.29786611]
[1771001785027,3.23490423,84.49,84.453,10.6636]
[1771001785426,7.27031087,84.496,84.454,7.29786611]
[1771001785628,36.38479246,84.59,84.423,21.335]
[1771001785629,3.23490423,84.51,84.462,17.96036611]
[1771001785930,3.23490423,84.52,84.463,7.29786611]
[1771001786529,3.23490423,84.52,84.435,21.61910534]
[1771001786530,3.23490423,84.53,84.481,7.29786611]
[1771001786727,3.23490423,84.54,84.481,7.29786611]
[1771001787132,10.6529,84.539,84.491,10.6588]
[1771001787326,179.91914681,84.542,84.491,7.29786611]
[1771001787535,7.27031087,84.573,84.52,3.23490423]
[1771001787736,3.23490423,84.58,84.531,10.6538]
[1771001787930,3.23490423,84.58,84.487,21.61910534]
[1771001787931,3.23490423,84.59,84.54,3.23490423]
[1771001788132,3.23490423,84.59,84.503,21.61910534]
[1771001788133,7.27031087,84.629,84.571,7.29786611]
[1771001788335,7.27031087,84.629,84.517,165.7541]
[1771001788336,3.23490423,84.6,84.554,7.29786611]
[1771001788641,7.27031087,84.64,84.581,7.29786611]
[1771001788841,10.5052151,84.64,84.581,7.29786611]
[1771001789142,7.27031087,84.64,84.581,7.29786611]
[1771001789335,3.23490423,84.63,84.581,7.29786611]
[1771001790138,3.23490423,84.62,84.581,7.29786611]
[1771001790344,3.23490423,84.6,84.561,7.29786611]
[1771001790536,3.23490423,84.61,84.561,7.29786611]
[1771001790834,3.23490423,84.61,84.513,105.37901024]
[1771001790835,3.23490423,84.63,84.575,7.70466097]
[1771001791035,7.61267828,84.646,84.575,7.70466097]
[1771001791241,7.61267828,84.629,84.575,7.70466097]
[1771001791638,7.61267828,84.621,84.558,7.70466097]
[1771001791839,101.04,84.648,84.541,7.70466097]
[1771001791840,8.62557242,84.61,84.541,7.70466097]
[1771001792043,7.61267828,84.627,84.541,7.70466097]
[1771001792238,10.6412,84.632,84.567,7.70466097]
[1771001792632,7.61267828,84.644,84.567,7.70466097]
[1771001792846,10.6398,84.643,84.571,7.70466097]
[1771001793236,7.61267828,84.642,84.571,7.70466097]
[1771001793640,7.61267828,84.629,84.571,7.70466097]
[1771001794042,7.61267828,84.628,84.571,7.70466097]
[1771001794238,7.61267828,84.628,84.547,7.70466097]
[1771001795041,7.61267828,84.628,84.56,7.70466097]
[1771001796146,10.6419,84.627,84.56,7.70466097]
[1771001796441,7.61267828,84.619,84.501,13.0]
[1771001796635,7.61267828,84.619,84.543,7.70466097]
[1771001797238,8.62557242,84.6,84.543,7.70466097]
[1771001797740,7.45701694,84.599,84.525,7.31825547]
[1771001798238,165.517,84.639,84.525,7.31825547]
[1771001798239,8.62557242,84.58,84.525,7.31825547]
[1771001798447,7.45701694,84.579,84.525,7.31825547]
[1771001799237,8.62557242,84.58,84.502,7.31825547]
[1771001799238,7.45701694,84.568,84.502,7.31825547]
[1771001799441,7.45701694,84.559,84.502,7.31825547]
[1771001799648,8.62557242,84.54,84.471,7.31825547]
[1771001799942,7.45701694,84.538,84.471,7.31825547]
[1771001800450,8.62557242,84.52,84.471,7.31825547]